bitfinex/quotes_ETHUSD_20260313
["timestamp","ask_amount","ask_price","bid_price","bid_amount"]
[1773429551215,0.002,2104.0,2103.7,1.04912005]
[1773429551622,0.002,2104.0,2103.7,2.23749771]
[1773429553226,0.001,2104.2,2103.8,1.04308417]
[1773429553426,0.002,2104.1,2103.9,1.388]
[1773429555642,0.001,2104.4,2104.1,1.03964503]
[1773429555854,2.32068805,2104.9,2104.1,1.03964503]
[1773429556354,0.002,2104.8,2104.3,1.03795725]
[1773429556504,2.32053294,2105.1,2104.3,1.03795725]
[1773429556706,1.13494077,2105.0,2104.4,1.389]
[1773429556944,1.13494077,2105.0,2104.4,2.42695725]
[1773429557234,1.13294077,2104.9,2104.4,1.03795725]
[1773429557532,1.13294077,2104.9,2104.5,1.389]
[1773429557735,1.18965136,2105.0,2104.5,1.389]
[1773429557736,1.13494077,2104.8,2104.5,1.389]
[1773429557940,1.13494077,2104.8,2104.0,1.567]
[1773429557941,1.13294077,2104.6,2104.1,1.1881339]
[1773429558314,0.002,2104.5,2104.2,1.03455744]
[1773429558512,1.13494077,2104.9,2104.2,1.03455744]
[1773429559017,1.13494077,2104.9,2104.0,1.03455744]
[1773429559211,1.13494077,2104.9,2104.1,1.39]
[1773429559416,1.13294077,2104.7,2104.2,1.18809999]
[1773429560023,2.32266664,2104.9,2104.2,2.2192512]
[1773429560221,1.18971169,2104.9,2104.3,1.03115121]
[1773429560637,1.18971169,2104.9,2104.2,1.18809999]
[1773429560638,1.13294077,2104.8,2104.1,3.6092662]
[1773429560836,1.13294077,2104.8,2104.2,1.02943987]
[1773429561346,2.26510909,2104.7,2104.3,1.391]
[1773429561522,2.26310909,2104.7,2104.3,1.391]
[1773429561926,0.002,2104.6,2104.3,1.391]
[1773429562224,2.26310909,2104.7,2104.3,1.391]
[1773429562546,0.002,2104.6,2104.4,0.0011]
[1773429565051,1.07724782,2104.6,2104.1,0.0011]
[1773429565252,1.07724782,2104.6,2104.2,1.392]
[1773429565441,1.07724782,2104.6,2104.1,0.0011]
[1773429565442,1.07524782,2104.4,2104.1,0.0011]
[1773429565643,1.07524782,2104.4,2103.9,0.0011]
[1773429565839,0.0009,2104.3,2103.9,0.0011]
[1773429566553,1.07614782,2104.3,2103.9,0.0011]
[1773429566854,1.07614782,2104.3,2104.0,1.392]
[1773429567434,1.18809999,2104.2,2104.0,1.392]
[1773429567840,0.0009,2104.1,2104.0,1.392]
[1773429568342,1.07614782,2104.1,2104.0,1.392]
[1773429568759,1.07524782,2104.1,2103.9,1.392]
[1773429569154,1.07524782,2104.1,2103.6,0.0011]
[1773429569734,1.07524782,2103.9,2103.6,0.0011]
[1773429570535,1.07524782,2103.9,2103.7,1.392]
[1773429570841,1.07524782,2104.3,2103.7,1.392]
[1773429571055,1.07524782,2104.3,2103.7,2.40478649]
[1773429571659,2.26317844,2104.5,2103.8,1.01278649]
[1773429572333,2.26317844,2104.5,2103.9,1.1882694]
[1773429572958,1.07524782,2104.4,2104.0,1.393]
[1773429573139,1.07524782,2104.4,2103.7,1.18835253]
[1773429574664,2.26329134,2104.3,2103.8,1.393]
[1773429574863,2.26329134,2104.3,2103.8,2.5813192]
[1773429575349,2.26329134,2104.3,2104.0,0.0011]
[1773429575957,2.26317844,2104.5,2104.0,0.0011]
[1773429576558,1.07524782,2104.4,2104.0,0.0011]
[1773429576760,2.26329134,2104.3,2104.1,1.392]
[1773429578484,1.07524782,2104.2,2104.1,1.392]
[1773429578671,1.07524782,2104.2,2104.0,0.0011]
[1773429580091,1.07524782,2104.2,2104.1,1.392]
[1773429580688,1.07524782,2104.3,2104.1,1.392]
[1773429580984,2.26329456,2104.3,2104.0,0.0011]
[1773429581190,1.07524782,2103.7,2102.8,0.0011]
[1773429581387,4.87152038,2103.8,2102.8,0.0011]
[1773429581388,1.07524782,2103.5,2102.8,0.0011]
[1773429581763,1.07524782,2103.3,2102.8,0.0011]
[1773429582385,1.07524782,2103.3,2102.9,1.381]
[1773429583089,1.18866489,2103.2,2102.9,1.381]
[1773429586202,1.18866489,2103.2,2103.0,1.385]
[1773429587383,1.18866489,2103.2,2102.8,0.0011]
[1773429587874,1.18866489,2103.2,2102.4,0.00110001]
[1773429587875,1.06599597,2103.1,2102.4,0.00110001]
[1773429588070,1.06599597,2102.8,2102.1,0.0011]
[1773429590202,1.06599597,2102.6,2102.1,0.0011]
[1773429590502,1.06599597,2102.6,2102.2,1.37]
[1773429592395,1.18906064,2102.5,2102.2,1.37]
[1773429592889,2.3352432,2102.5,2102.1,0.0011]
[1773429593089,1.14618256,2102.4,2102.1,0.0011]
[1773429593487,1.14618256,2102.4,2101.9,0.0011]
[1773429594388,1.18917376,2102.3,2101.9,0.0011]
[1773429594598,1.18917376,2102.3,2102.0,1.365]
[1773429595614,4.75614168,2102.6,2102.0,2.38635496]
[1773429595804,4.75614168,2102.6,2102.1,1.02135496]
[1773429596892,1.18900409,2102.6,2102.1,2.21059859]
[1773429597084,1.18900409,2102.6,2102.1,1.02135496]
[1773429598597,1.18900409,2102.6,2102.1,2.2106215]
[1773429598796,2.33517035,2102.7,2102.1,2.2106215]
[1773429598996,1.18898779,2102.7,2102.2,1.01598484]
[1773429599309,1.18892079,2102.8,2102.3,1.01419773]
[1773429599687,1.14618256,2102.7,2101.9,0.0011]
[1773429599892,1.14618256,2102.7,2102.1,1.01419773]
[1773429600500,2.33506058,2102.9,2102.1,1.01419773]
[1773429600703,1.18887802,2102.9,2102.1,1.01419773]
[1773429600913,2.33506058,2102.9,2102.2,1.366]
[1773429601121,2.33506058,2102.9,2102.3,1.3671]
[1773429601919,1.14618256,2102.8,2102.4,1.368]
[1773429602320,1.14618256,2102.8,2102.3,0.0011]
[1773429602907,1.14618256,2102.6,2102.0,0.0011]
[1773429603090,1.14538256,2102.6,2102.0,0.0011]
[1773429603295,1.14458256,2102.6,2102.0,0.0011]
[1773429603595,1.14458256,2102.6,2102.1,1.37]
[1773429605221,1.18906064,2102.5,2102.1,1.37]
[1773429605595,1.18906064,2102.5,2102.0,0.0011]
[1773429605596,2.3352432,2102.5,2102.0,0.0011]
[1773429605797,2.3352432,2102.5,2102.1,1.374]
[1773429606530,1.18906064,2102.5,2102.1,1.374]
[1773429606716,5.90163667,2102.9,2102.2,1.00344913]
[1773429607034,6.14249291,2102.9,2102.2,1.00344913]
[1773429607511,6.14249291,2102.9,2102.3,1.377]
[1773429607512,1.14618256,2102.8,2102.3,1.377]
[1773429609432,2.3351301,2102.7,2102.3,1.377]
[1773429609624,1.14618256,2102.6,2102.3,1.377]
[1773429609931,1.14618256,2102.6,2102.0,0.0011]
[1773429610111,1.14618256,2102.6,2102.1,1.381]
[1773429610827,1.14618256,2102.6,2102.0,0.0011]
[1773429611027,1.14618256,2102.6,2102.2,1.382]
[1773429611326,1.14618256,2102.6,2102.0,0.0011]
[1773429611731,1.14618256,2102.4,2102.0,0.0011]
[1773429612300,1.14618256,2102.4,2102.1,1.383]
[1773429612507,1.14618256,2102.4,2102.0,0.0011]
[1773429612711,1.14618256,2102.4,2101.8,0.0011]
[1773429612933,1.14618256,2102.4,2101.8,1.3781]
[1773429613132,1.14618256,2102.4,2101.7,0.0011]
[1773429613635,1.14618256,2102.2,2101.7,0.0011]
[1773429614630,1.14618256,2102.2,2101.9,0.0011]
[1773429615724,2.33546946,2102.1,2101.9,0.0011]
[1773429616231,2.33546946,2102.1,2101.7,0.0011]
[1773429616540,1.14618256,2102.0,2101.7,0.0011]
[1773429617136,1.14618256,2102.0,2101.4,0.0011]
[1773429618245,1.18940006,2101.9,2101.4,0.0011]
[1773429618553,2.33558262,2101.9,2101.5,1.383]
[1773429619117,1.14618256,2101.8,2101.4,0.0011]
[1773429620414,1.18951325,2101.7,2101.4,0.0011]
[1773429620817,1.18893842,2101.5,2101.4,0.0011]
[1773429622514,1.18893842,2101.5,2101.4,1.3851]
[1773429623943,4.75742352,2102.0,2101.4,1.3851]
[1773429623944,1.13126239,2102.3,2101.5,0.54675303]
[1773429624649,1.18923033,2102.2,2101.7,0.54527596]
[1773429625945,1.1891599,2102.4,2101.7,0.54527596]
[1773429626840,0.001,2102.0,2101.8,1.76676343]
[1773429628451,1.18613957,2102.0,2101.6,0.0011]
[1773429628837,1.18513957,2101.8,2101.6,0.0011]
[1773429629453,1.18513957,2101.8,2101.4,0.0011]
[1773429629953,1.18513957,2101.8,2101.5,1.362]
[1773429630932,2.37453963,2101.9,2101.5,1.362]
[1773429632659,1.18513957,2101.8,2101.5,1.362]
[1773429632878,2.37463346,2101.8,2101.5,1.362]
[1773429633165,1.18513957,2101.7,2101.4,0.0011]
[1773429633764,1.18513957,2101.7,2101.1,0.0011]
[1773429634471,1.18513957,2101.7,2101.2,1.371]
[1773429634972,1.18513957,2101.5,2101.2,1.371]
[1773429635270,1.18513957,2101.5,2101.1,0.0011]
[1773429635576,1.18513957,2101.5,2100.2,4.76824599]
[1773429635875,1.18458957,2101.3,2100.3,1.361]
[1773429637345,1.18458957,2101.1,2100.4,1.19024947]
[1773429638672,1.18458957,2101.1,2100.3,6.12213662]
[1773429638673,1.18458957,2101.1,2100.3,1.19028726]
[1773429638873,1.18458957,2101.1,2100.4,1.367]
[1773429639175,1.18458957,2101.1,2100.5,1.3691]
[1773429639377,1.18458957,2100.9,2100.5,0.0011]
[1773429639675,1.18458957,2100.9,2100.6,1.368]
[1773429640050,1.18458957,2100.9,2100.5,0.0011]
[1773429640251,1.18458957,2100.9,2100.6,1.37]
[1773429641378,2.37445538,2101.1,2100.6,1.37]
[1773429641556,2.37445538,2101.1,2100.6,2.56013528]
[1773429642777,2.61539905,2101.1,2100.6,2.56013528]
[1773429643380,2.37436914,2101.3,2100.6,2.56013528]
[1773429644160,1.18458957,2101.2,2100.6,2.56013528]
[1773429645291,1.18458957,2101.5,2100.6,2.56013528]
[1773429645593,1.18968306,2101.4,2100.6,2.56013528]
[1773429645800,1.18458957,2101.3,2100.6,2.56013528]
[1773429647592,1.18458957,2101.1,2100.5,0.0011]
[1773429647888,1.1897963,2101.2,2100.3,0.0011]
[1773429647889,1.18458957,2100.9,2100.3,0.0011]
[1773429648093,1.18458957,2100.9,2100.0,0.0011]
[1773429648497,1.18458957,2100.9,2100.0,1.19157216]
[1773429648790,1.18458957,2100.9,2100.0,0.0011]
[1773429648995,1.18458957,2100.9,2100.1,1.375]
[1773429649871,1.18458957,2100.7,2100.1,1.375]
[1773429651318,1.18458957,2100.7,2100.0,0.0011]
[1773429651490,1.18458957,2100.6,2100.1,1.377]
[1773429651906,1.18458957,2100.4,2100.1,1.377]
[1773429652114,1.18458957,2100.4,2100.0,0.0011]
[1773429652644,1.18458957,2100.3,2099.1,1.19098661]
[1773429652784,1.18458957,2100.1,2099.1,1.19098661]
[1773429653209,1.18458957,2100.1,2099.8,0.0011]
[1773429653415,1.18458957,2100.1,2099.6,1.373]
[1773429653609,1.18458957,2100.0,2098.7,1.1912136]
[1773429653812,1.18458957,2099.9,2098.7,1.1912136]
[1773429653995,1.18458957,2099.7,2098.8,0.04764627]
[1773429654312,1.18458957,2099.7,2098.7,0.04764854]
[1773429654693,1.18458957,2099.7,2098.6,1.19127037]
[1773429654991,1.18458957,2099.7,2098.7,1.373]
[1773429655191,1.18458957,2099.7,2098.8,0.04764627]
[1773429656413,1.18458957,2099.5,2098.8,1.23879875]
[1773429658027,1.18458957,2099.5,2098.9,1.376]
[1773429658214,1.18458957,2099.5,2099.0,1.376]
[1773429658520,2.37538915,2099.5,2099.0,2.56704305]
[1773429658726,2.37538915,2099.5,2099.0,1.376]
[1773429659022,2.37538915,2099.5,2099.0,2.56704273]
[1773429659222,1.18458957,2099.5,2099.0,2.56704273]
[1773429659458,1.18458957,2099.4,2098.0,1.569]
[1773429659606,1.18458957,2099.4,2098.2,1.19149747]
[1773429660114,1.18458957,2099.0,2097.1,1.85614159]
[1773429660439,1.18458957,2099.0,2097.3,0.065536]
[1773429660739,1.18458957,2098.7,2097.2,4.7681997]
[1773429660934,1.18458957,2098.7,2097.3,1.361]
[1773429661235,1.18458957,2098.7,2097.3,1.40868035]
[1773429661537,1.18458957,2098.7,2097.2,4.7681997]
[1773429661832,1.18458957,2098.7,2097.3,1.41068035]
[1773429662522,1.18458957,2098.5,2097.4,1.19195194]
[1773429662705,1.18458957,2098.5,2097.5,0.0476758]
[1773429662908,1.18458957,2098.5,2097.4,1.19195194]
[1773429663133,1.18458957,2098.5,2097.5,1.367]
[1773429663539,1.18458957,2098.5,2097.4,1.19195194]
[1773429663840,1.18458957,2098.2,2096.8,1.19229301]
[1773429664903,1.18458957,2098.0,2096.6,4.76917207]
[1773429665203,1.18458957,2098.0,2096.7,1.371]
[1773429665634,1.18458957,2098.0,2097.5,0.0011]
[1773429665829,1.18458957,2098.0,2097.3,0.0011]
[1773429666830,1.18458957,2097.8,2097.3,0.0011]
[1773429667565,1.18458957,2097.8,2097.4,1.375]
[1773429668455,1.18458957,2097.8,2097.3,0.0011]
[1773429668952,1.18458957,2097.6,2097.3,0.0011]
[1773429670856,1.18458957,2097.7,2097.3,0.0011]
[1773429671737,1.18458957,2097.6,2097.3,0.0011]
[1773429672635,1.18458957,2097.6,2097.0,0.0011]
[1773429673345,1.18458957,2097.6,2096.6,1.19238917]
[1773429673548,1.18403957,2097.4,2096.1,4.77030959]
[1773429673773,1.18403957,2097.4,2096.2,0.04770537]
[1773429673981,1.18403957,2097.4,2096.3,1.373]
[1773429674177,1.18403957,2097.4,2096.4,0.04770082]
[1773429675006,1.18403957,2097.4,2096.3,1.373]
[1773429675799,1.18403957,2097.2,2096.4,2.56652051]
[1773429675997,1.18403957,2097.2,2096.5,1.374]
[1773429676288,1.18403957,2097.2,2096.6,1.375]
[1773429677066,1.18403957,2097.7,2096.6,1.375]
[1773429677270,1.18403957,2097.7,2096.7,0.04769399]
[1773429677470,1.18403957,2097.7,2096.6,1.375]
[1773429677471,1.18403957,2097.6,2096.6,1.375]
[1773429677780,1.18403957,2097.5,2096.7,1.19234988]
[1773429678793,1.18403957,2097.8,2096.8,0.04769172]
[1773429679570,2.37562747,2098.1,2096.8,0.04769172]
[1773429679778,1.18403957,2098.7,2097.1,1.19212245]
[1773429679972,1.18403957,2098.7,2097.1,1.23980734]
[1773429680303,1.18403957,2098.7,2097.3,1.85614159]
[1773429680490,1.18403957,2098.7,2097.2,0.14948499]
[1773429680995,1.18403957,2098.7,2097.4,1.85614159]
[1773429681206,1.18403957,2098.7,2097.5,1.378]
[1773429682099,2.37530994,2098.6,2097.6,1.19183829]
[1773429682298,1.18403957,2098.5,2097.6,1.19183829]
[1773429682805,1.18403957,2098.5,2097.7,1.379]
[1773429684308,1.18403957,2098.5,2097.8,1.19172466]
[1773429684806,1.18403957,2098.8,2097.8,1.19172466]
[1773429685308,1.18403957,2099.1,2098.1,2.49227562]
[1773429686101,2.37503923,2099.1,2098.1,2.49227562]
[1773429686409,2.37503245,2099.1,2098.2,1.19149747]
[1773429686708,1.18403957,2099.1,2098.2,1.19149747]
[1773429686906,2.37503434,2099.1,2098.2,1.19149747]
[1773429687111,2.37503996,2099.1,2098.2,1.19149747]
[1773429687312,2.37504215,2099.1,2098.3,1.38]
[1773429688585,1.18403957,2099.1,2098.4,1.19138391]
[1773429688791,1.18403957,2099.4,2098.4,1.19138391]
[1773429689101,1.1917144,2099.6,2098.4,1.19138391]
[1773429689301,1.18403957,2099.5,2098.4,1.19138391]
[1773429690518,0.001,2099.2,2098.4,1.19138391]
[1773429691513,0.001,2099.6,2098.6,1.86132827]
[1773429692010,0.001,2099.6,2098.5,0.14948499]
[1773429692429,1.18403957,2100.1,2098.5,0.14948499]
[1773429692629,1.18403957,2100.0,2098.9,1.86132827]
[1773429692795,1.18403957,2100.0,2098.7,0.14948499]
[1773429693119,1.18403957,2099.8,2098.8,1.19115685]
[1773429693322,1.18403957,2099.8,2098.9,1.382]
[1773429693521,2.37446583,2100.1,2099.1,1.86132827]
[1773429693909,1.18403957,2100.0,2099.1,1.86132827]
[1773429694526,1.18403957,2100.3,2099.1,1.86132827]
[1773429694727,1.18403957,2100.3,2098.9,1.382]
[1773429694938,1.18403957,2100.1,2099.1,1.19098661]
[1773429695229,1.18403957,2100.1,2099.0,1.382]
[1773429695804,1.18403957,2100.1,2099.0,1.42964173]
[1773429696230,1.18403957,2100.1,2099.1,1.86132827]
[1773429696440,1.18403957,2100.4,2099.1,1.90896773]
[1773429696640,1.18403957,2100.4,2099.0,1.382]
[1773429697038,1.18403957,2100.2,2099.1,1.19098661]
[1773429697235,1.18403957,2100.2,2099.2,1.43163719]
[1773429697540,1.18403957,2100.1,2099.3,1.384]
[1773429697742,1.18403957,2100.1,2099.4,1.384]
[1773429698048,1.18403957,2100.1,2098.5,1.19132713]
[1773429698919,1.18403957,2100.1,2098.6,0.04765081]
[1773429699120,1.18403957,2099.9,2098.7,2.5762136]
[1773429699744,1.18403957,2099.9,2098.7,1.1912136]
[1773429700048,1.18403957,2099.9,2098.8,1.386]
[1773429700418,1.18403957,2099.9,2098.9,0.047644]
[1773429701322,2.37458165,2099.9,2099.0,1.19104335]
[1773429701624,1.18403957,2099.9,2099.1,0.04763946]
[1773429701831,2.37458516,2099.9,2099.1,0.04763946]
[1773429702650,2.37457756,2099.9,2099.1,0.04763946]
[1773429702850,1.18403957,2099.9,2099.1,0.04763946]
[1773429703349,2.37557968,2099.9,2099.2,1.19092987]
[1773429703645,1.18503957,2099.9,2099.2,1.19092987]
[1773429703852,1.18503957,2099.9,2099.3,0.04763492]
[1773429704054,2.37557474,2099.9,2099.2,1.19092987]
[1773429705647,2.37557474,2099.9,2099.3,1.388]
[1773429705648,0.001,2099.9,2099.3,1.388]
[1773429705853,0.001,2099.9,2099.4,0.04763265]
[1773429706557,0.001,2099.9,2099.3,1.388]
[1773429707832,1.18503957,2099.9,2099.4,1.388]
[1773429708842,0.001,2099.9,2099.4,1.388]
[1773429709035,1.18403957,2100.2,2099.5,0.04763038]
[1773429709742,1.18403957,2100.2,2099.6,1.19070299]
[1773429709949,2.37428904,2100.4,2099.7,0.04762584]
[1773429710244,1.18403957,2100.3,2099.7,0.04762584]
[1773429710930,1.18403957,2100.3,2099.6,1.19070299]
[1773429711136,1.18403957,2100.3,2099.7,1.389]
[1773429711757,1.18403957,2100.3,2099.8,0.04762358]
[1773429712292,1.18403957,2100.5,2099.8,1.19057741]
[1773429712495,1.18403957,2100.5,2099.8,1.19058103]
[1773429712792,1.18403957,2100.5,2099.9,1.389]
[1773429712992,1.18403957,2100.5,2099.3,1.19087314]
[1773429713174,1.18403957,2100.5,2099.4,0.04763265]
[1773429713480,1.18403957,2100.5,2098.9,1.1911001]
[1773429714150,1.18403957,2100.3,2099.1,1.19098661]
[1773429714354,1.18403957,2100.3,2099.2,0.04763719]
[1773429715453,1.18403957,2100.3,2099.1,1.19098661]
[1773429715964,1.18403957,2100.3,2099.4,0.0011]
[1773429716161,1.18403957,2100.0,2099.4,0.0011]
[1773429716386,0.001,2100.1,2098.8,1.19115685]
[1773429716387,1.18403957,2099.8,2098.8,1.19115685]
[1773429716552,1.18403957,2099.8,2099.1,0.0011]
[1773429717665,1.18403957,2099.8,2099.2,1.39]
[1773429718369,1.18403957,2099.6,2099.2,1.39]
[1773429718680,1.18403957,2099.6,2099.1,0.0011]
[1773429718863,1.18403957,2099.6,2099.1,1.1920803]
[1773429719065,1.18403957,2099.6,2099.2,0.04763719]
[1773429719967,1.18403957,2099.6,2099.3,1.391]
[1773429720480,1.18403957,2099.6,2099.4,0.04763265]
[1773429720888,1.19066307,2099.7,2099.4,0.04763265]
[1773429721382,1.18403957,2099.6,2099.3,1.391]
[1773429722569,2.37474445,2099.6,2099.3,1.391]
[1773429722960,1.18403957,2099.5,2099.1,0.0011]
[1773429723165,1.18403957,2099.5,2099.2,1.391]
[1773429723370,1.18403957,2099.5,2099.2,1.43863719]
[1773429724988,1.18403957,2099.5,2099.2,2.62954936]
[1773429725383,1.18403957,2099.5,2099.2,1.391]
[1773429725589,1.18403957,2099.4,2099.3,1.391]
[1773429725964,1.18403957,2099.4,2099.1,0.0011]
[1773429726166,1.18403957,2099.4,2098.9,0.0011]
[1773429726566,1.18403957,2099.4,2098.9,0.049844]
[1773429726890,1.18403957,2099.4,2098.9,0.048744]
[1773429727380,2.37491271,2099.3,2098.9,0.048744]
[1773429727688,2.37491271,2099.3,2099.0,1.386]
[1773429727886,1.18403957,2099.2,2099.0,1.386]
[1773429728091,1.18403957,2099.2,2098.9,0.0011]
[1773429728387,1.18403957,2099.2,2099.0,1.387]
[1773429728961,1.18403957,2099.2,2099.1,0.0011]
[1773429731016,1.17883957,2099.7,2099.1,0.0011]
[1773429731305,2.36949565,2099.7,2099.1,0.0011]
[1773429731660,1.17883957,2099.7,2099.1,0.0011]
[1773429731865,1.17883957,2099.7,2099.2,0.0011]
[1773429734488,1.17883957,2099.6,2099.2,0.0011]
[1773429735092,1.17883957,2099.5,2098.9,0.0011]
[1773429735478,1.17883957,2099.3,2098.9,0.0011]
[1773429735678,1.17883957,2099.3,2098.7,0.0011]
[1773429736396,1.17883957,2099.3,2098.8,1.389]
[1773429736782,1.17883957,2099.3,2098.7,0.0011]
[1773429737087,1.17883957,2099.3,2098.7,1.3901]
[1773429737474,1.17828957,2099.1,2098.7,0.0011]
[1773429738069,1.17828957,2099.1,2098.6,0.0011]
[1773429738070,1.17828957,2099.1,2098.2,0.0011]
[1773429739600,1.17828957,2098.9,2098.3,1.388]
[1773429741799,1.17828957,2098.7,2098.3,1.388]
[1773429742102,1.17828957,2098.7,2098.6,0.0011]
[1773429742678,1.17828957,2098.7,2098.2,0.0011]
[1773429743601,1.17828957,2098.7,2098.2,1.19255888]
[1773429743777,2.36954335,2098.7,2098.3,0.04765762]
[1773429743979,2.36954335,2098.7,2098.4,1.387]
[1773429745304,1.17828957,2098.7,2098.4,1.387]
[1773429745598,4.76392707,2099.2,2098.4,1.387]
[1773429745599,1.17828957,2099.0,2098.4,1.387]
[1773429745800,1.17828957,2099.2,2098.6,1.19127037]
[1773429746201,1.17828957,2099.2,2098.5,1.19128346]
[1773429747687,1.17828957,2099.2,2098.4,2.5783431]
[1773429748014,1.17828957,2099.0,2098.5,1.388]
[1773429748890,1.17828957,2099.0,2098.6,1.388]
[1773429749912,2.36937218,2099.0,2098.6,1.388]
[1773429750090,1.17828957,2098.9,2098.6,1.388]
[1773429750296,1.17828957,2098.9,2098.2,1.19255962]
[1773429750496,1.17828957,2098.9,2098.2,0.0011]
[1773429750887,1.17828957,2098.9,2098.2,0.04875989]
[1773429751415,1.17828957,2098.9,2098.3,1.388]
[1773429752102,1.17828957,2098.9,2098.3,2.57942486]
[1773429752103,1.17828957,2098.7,2098.3,2.57942486]
[1773429752288,2.36943032,2098.9,2098.4,0.04765535]
[1773429752898,1.17828957,2098.8,2098.4,0.04765535]
[1773429753097,1.17828957,2098.8,2098.3,2.57942486]
[1773429753503,1.17828957,2098.8,2098.3,1.388]
[1773429753815,1.17828957,2098.8,2098.3,2.57943655]
[1773429754016,1.17828957,2098.8,2098.6,0.0011]
[1773429754190,0.001,2098.9,2098.6,0.0011]
[1773429754786,1.17828957,2099.1,2098.6,0.0011]
[1773429756200,2.36930134,2099.1,2098.6,0.0011]
[1773429757220,2.36920982,2099.3,2098.6,0.0011]
[1773429757812,1.17828957,2099.3,2098.6,0.0011]
[1773429758312,1.19092987,2099.2,2098.6,0.0011]
[1773429759334,1.17828957,2099.1,2098.3,1.05640055]
[1773429759634,1.17828957,2098.9,2098.2,0.0011]
[1773429759934,1.17828957,2098.9,2098.2,1.19259692]
[1773429760629,2.36944642,2098.8,2098.3,1.387]
[1773429761010,1.17828957,2098.7,2098.3,1.387]
[1773429762631,2.36955994,2098.6,2098.3,1.387]
[1773429762834,1.17828957,2098.5,2098.3,1.387]
[1773429763744,1.19125106,2098.7,2098.3,1.387]
[1773429764523,0.96987033,2099.2,2098.3,3.45499518]
[1773429764811,1.19098661,2099.1,2098.5,1.19132713]
[1773429765011,2.17579572,2099.1,2098.5,1.19132713]
[1773429765322,0.98480911,2099.3,2098.5,2.10141406]
[1773429765522,5.74852862,2099.3,2098.6,0.91008693]
[1773429765822,2.17568225,2099.3,2098.6,0.91008693]
[1773429766828,0.001,2098.7,2098.6,2.1013573]
[1773429767005,2.17568225,2099.3,2098.6,2.1013573]
[1773429769035,0.98480911,2099.2,2098.6,2.1013573]
[1773429769235,0.98480911,2099.2,2098.6,1.19127037]
[1773429769838,0.98480911,2099.2,2098.5,0.0011]
[1773429771033,0.99921279,2099.0,2098.6,1.373]
[1773429771233,0.99921279,2099.0,2098.3,0.0011]
[1773429772608,0.99921279,2099.0,2098.4,1.375]
[1773429772917,2.19030725,2099.0,2098.5,1.19132713]
[1773429774727,1.1910079,2099.1,2098.5,2.08826059]
[1773429775129,2.19018749,2099.2,2098.5,2.08826059]
[1773429775432,2.19018749,2099.2,2098.5,2.08677865]
[1773429775808,2.19018749,2099.2,2098.6,0.89545152]
[1773429778234,2.19018749,2099.2,2098.6,2.08669916]
[1773429779519,2.19018749,2099.2,2098.7,0.0011]
[1773429779718,0.99921279,2099.1,2098.7,0.0011]
[1773429779930,1.00021279,2099.1,2098.7,0.0011]
[1773429780131,1.19104335,2099.0,2098.7,0.0011]
[1773429780331,0.99921279,2098.9,2098.7,0.0011]
[1773429781115,0.99921279,2098.9,2098.8,1.378]
[1773429782236,1.00021279,2099.1,2098.8,1.378]
[1773429782841,0.001,2099.1,2098.8,1.378]
[1773429783049,0.001,2099.1,2098.8,2.56913367]
[1773429783222,0.001,2099.1,2098.9,0.047644]
[1773429783716,0.001,2099.1,2098.8,1.378]
[1773429785116,0.001,2099.1,2098.8,2.569144]
[1773429785428,0.001,2099.1,2098.8,1.378]
[1773429786036,0.001,2099.1,2098.9,0.01202989]
[1773429786238,0.001,2099.1,2098.8,1.378]
[1773429787447,0.001,2099.1,2098.9,0.01202989]
[1773429787822,1.00021279,2099.1,2098.7,0.0011]
[1773429788228,1.00021279,2099.1,2098.8,1.379]
[1773429788822,0.99921279,2098.9,2098.7,0.0011]
[1773429789420,0.99921279,2098.9,2098.5,0.0011]
[1773429791134,2.19031369,2098.9,2098.5,0.0022]
[1773429791335,1.1911009,2098.9,2098.5,0.0022]
[1773429791652,1.1911009,2098.9,2098.6,1.379]
[1773429792330,1.1911009,2098.9,2098.7,0.0011]
[1773429792540,1.1921009,2098.9,2098.7,0.0011]
[1773429792945,2.19131369,2098.9,2098.7,0.0011]
[1773429793529,1.1921009,2098.9,2098.7,0.0011]
[1773429793732,0.99921279,2098.8,2098.7,0.0011]
[1773429793951,0.99921279,2098.8,2098.5,0.0011]
[1773429794641,0.99921279,2098.8,2098.3,0.0011]
[1773429794843,0.99921279,2098.8,2098.3,0.0022]
[1773429795356,0.99921279,2098.6,2098.0,0.0011]
[1773429795555,0.99921279,2098.4,2097.3,2.05945364]
[1773429795855,0.99921279,2098.4,2097.4,0.86745935]
[1773429796157,0.99921279,2098.2,2097.3,0.04768035]
[1773429796366,0.99921279,2098.2,2097.0,0.9138682]
[1773429797039,0.99921279,2098.2,2097.1,2.24374213]
[1773429797235,0.99921279,2098.2,2097.2,0.04768262]
[1773429797436,0.99921279,2098.0,2097.3,1.19200877]
[1773429797633,1.19155426,2098.1,2097.4,0.9124202]
[1773429798156,2.19076705,2098.1,2097.4,0.9124202]
[1773429798357,0.99921279,2098.0,2097.3,1.19200877]
[1773429798566,0.99921279,2098.0,2097.4,1.379]
[1773429799552,0.99921279,2098.0,2097.6,1.19183829]
[1773429799886,0.99921279,2098.0,2097.7,0.02383562]
[1773429800440,2.1908272,2098.0,2097.5,1.19184875]
[1773429802544,2.20303516,2098.2,2097.5,1.19184875]
[1773429802744,2.20303516,2098.2,2097.5,2.04951626]
[1773429803061,1.01149722,2098.1,2097.5,2.04951626]
[1773429803261,1.01149722,2098.1,2097.6,0.02383649]
[1773429803568,1.01149722,2098.1,2097.5,1.19184875]
[1773429804340,1.01149722,2098.4,2097.5,1.19184875]
[1773429804678,0.001,2098.9,2097.6,0.91980354]
[1773429804679,1.01149722,2098.7,2097.6,0.91980354]
[1773429805372,2.20363973,2098.9,2097.8,0.91980354]
[1773429805580,0.001,2097.9,2097.8,0.91980354]
[1773429806676,0.001,2097.9,2097.8,2.1115282]
[1773429807845,1.19124871,2098.7,2097.9,0.91980354]
[1773429808170,1.01149722,2098.7,2098.1,0.91980354]
[1773429809466,1.01149722,2098.7,2098.2,1.19149747]
[1773429809775,2.20271167,2098.7,2098.2,1.19149747]
[1773429809964,1.01149722,2098.7,2098.2,1.19149747]
[1773429811275,1.01149722,2098.7,2097.7,4.76704949]
[1773429811276,1.01149722,2098.6,2097.7,4.76692786]
[1773429811472,1.01149722,2098.4,2097.8,2.56970008]
[1773429813074,1.01149722,2098.8,2097.9,0.91980354]
[1773429813774,0.001,2098.9,2098.2,0.91980354]